Workbook

Sheet LCI-annex
A1: SI table S1
A2: Constituent | B2: Source | C2: Year | D2: Unit | E2: GWP (kg CO2e/unit) | F2: Citation
A3: CEMI | B3: Chiaia | C3: 2014 | D3: kg | E3: 0.83 | F3: Chiaia, B., Fantilli, A.P., Guerini, A., Volpatti, G. and Zampini, D., 2014. Eco-mechanical index for structural concrete. Construction and Building Materials, 67, pp.386-392.
B4: Garcia Segura | C4: 2014 | E4: 0.819 | F4: Gutiérrez, A.S., Eras, J.J.C., Gaviria, C.A., Van Caneghem, J. and Vandecasteele, C., 2017. Improved selection of the functional unit in environmental impact assessment of cement. Journal of Cleaner Production, 168, pp.463-473.
B5: Rahla | C5: 2019 | E5: 0.8884210526 | F5: Rahla, K.M., Mateus, R. and Bragança, L., 2019. Comparative sustainability assessment of binary blended concretes using Supplementary Cementitious Materials (SCMs) and Ordinary Portland Cement (OPC). Journal of Cleaner Production, 220, pp.445-459.
B6: Sandanayake | C6: 2018 | E6: 0.8631578947 | F6: Sandanayake, M., Lokuge, W., Zhang, G., Setunge, S. and Thushar, Q., 2018. Greenhouse gas emissions during timber and concrete building construction—A scenario based comparative case study. Sustainable cities and society, 38, pp.91-97.
B7: Mean | E7: =AVERAGE(E3:E6) -> 0.8501447368
B8: Standard deviation | E8: =_xlfn.STDEV.S(E3:E6) -> 0.03167661432
A9: Gypsum | B9: Suarez | C9: 2016 | E9: 0.039 | F9: Suárez, S., Roca, X. and Gasso, S., 2016. Product-specific life cycle assessment of recycled gypsum as a replacement for natural gypsum in ordinary Portland cement: application to the Spanish context. Journal of cleaner production, 117, pp.150-159.
B10: Pedreno-Rojas | C10: 2020 | E10: 0.069 | F10: Pedreño-Rojas, M.A., Fořt, J., Černý, R. and Rubio-de-Hita, P., 2020. Life cycle assessment of natural and recycled gypsum production in the Spanish context. Journal of Cleaner Production, 253, p.120056.
B11: Mean | E11: =AVERAGE(E9:E10) -> 0.054
B12: Standard deviation | E12: =_xlfn.STDEV.S(E9:E10) -> 0.02121320344
A13: Limestone filler | B13: Radovic | C13: 2023 | E13: 0.121 | F13: Radović, A., Hafez, H., Tošić, N., Marinković, S. and de la Fuente, A., 2022. ECO2 framework assessment of limestone powder concrete slabs and columns. Journal of Building Engineering, 57, p.104928.
B14: Habert | C14: 2011 | E14: 0.0351 | F14: Habert, G., De Lacaillerie, J.D.E. and Roussel, N., 2011. An environmental evaluation of geopolymer based concrete production: reviewing current research trends. Journal of cleaner production, 19(11), pp.1229-1238.
B15: Chiaia | C15: 2014 | E15: 0.02 | F15: Chiaia, B., Fantilli, A.P., Guerini, A., Volpatti, G. and Zampini, D., 2014. Eco-mechanical index for structural concrete. Construction and Building Materials, 67, pp.386-392.
B16: Mean | E16: =AVERAGE(E13:E15) -> 0.0587
B17: Standard deviation | E17: =_xlfn.STDEV.S(E13:E15) -> 0.05447907855
A18: Calcined clay | B18: Pillai | C18: 2019 | E18: 0.127 | F18: Pillai, R.G., Gettu, R., Santhanam, M., Rengaraju, S., Dhandapani, Y., Rathnarajan, S. and Basavaraj, A.S., 2019. Service life and life cycle assessment of reinforced concrete systems with limestone calcined clay cement (LC3). Cement and Concrete Research, 118, pp.111-119.
B19: Jones | C19: 2011 | E19: 0.311 | F19: Jones, R., McCarthy, M. and Newlands, M., 2011, May. Fly ash route to low embodied CO2 and implications for concrete construction. In World of Coal Ash (WOCA) Conference (pp. 1-14).
B20: Basavaraj | C20: 2023 | E20: 0.258 | F20: Basavaraj, A.S., Muni, H., Dhandapani, Y., Gettu, R. and Santhanam, M., 2023. Limestone-Calcined Clay (LC2) as a supplementary cementitious material for concrete. RILEM Technical Letters, 8, pp.12-22.
B21: Mean | E21: =AVERAGE(E18:E20) -> 0.232
B22: Standard deviation | E22: =_xlfn.STDEV.S(E18:E20) -> 0.09471536306
A23: Coarse Agg | B23: Bisawas | C23: 2017 | E23: 0.005 | F23: Biswas, W.K., Alhorr, Y., Lawania, K.K., Sarker, P.K. and Elsarrag, E., 2017. Life cycle assessment for environmental product declaration of concrete in the Gulf States. Sustainable Cities and Society, 35, pp.36-46.
B24: Habert | C24: 2011 | E24: 0.00429 | F24: Habert, G., De Lacaillerie, J.D.E. and Roussel, N., 2011. An environmental evaluation of geopolymer based concrete production: reviewing current research trends. Journal of cleaner production, 19(11), pp.1229-1238.
B25: Kurda | C25: 2017 | E25: 0.0029 | F25: Kurad, R., Silvestre, J.D., de Brito, J. and Ahmed, H., 2017. Effect of incorporation of high volume of recycled concrete aggregates and fly ash on the strength and global warming potential of concrete. Journal of Cleaner Production, 166, pp.485-502.
B26: Mean | E26: =AVERAGE(E23:E25) -> 0.004063333333
B27: Standard deviation | E27: =_xlfn.STDEV.S(E23:E25) -> 0.001068191618
A28: Fine Agg | B28: Al-Ayish | C28: 2018 | E28: 0.002 | F28: Al-Ayish, N., During, O., Malaga, K., Silva, N. and Gudmundsson, K., 2018. The influence of supplementary cementitious materials on climate impact of concrete bridges exposed to chlorides. Construction and Building Materials, 188, pp.391-398.
B29: Walach | C29: 2020 | E29: 0.0031 | F29: Wałach, D., 2020, December. Economic and environmental assessment of new generation concretes. In IOP Conference Series: Materials Science and Engineering (Vol. 960, No. 4, p. 042013). IOP Publishing.
B30: Biswas | C30: 2017 | E30: 0.002 | F30: Biswas, W.K., Alhorr, Y., Lawania, K.K., Sarker, P.K. and Elsarrag, E., 2017. Life cycle assessment for environmental product declaration of concrete in the Gulf States. Sustainable Cities and Society, 35, pp.36-46.
B31: Mean | E31: =AVERAGE(E28:E30) -> 0.002366666667
B32: Standard deviation | E32: =_xlfn.STDEV.S(E28:E30) -> 0.0006350852961
A33: Super Plasticizers | B33: Bisawas | C33: 2017 | E33: 1.13 | F33: Biswas, W.K., Alhorr, Y., Lawania, K.K., Sarker, P.K. and Elsarrag, E., 2017. Life cycle assessment for environmental product declaration of concrete in the Gulf States. Sustainable Cities and Society, 35, pp.36-46.
B34: Muller | C34: 2014 | E34: 0.944 | F34: Müller, H.S., Haist, M. and Vogel, M., 2014. Assessment of the sustainability potential of concrete and concrete structures considering their environmental impact, performance and lifetime. Construction and Building Materials, 67, pp.321-337.
B35: Schiefer | C35: 2023 | E35: 0.9 | F35: Schiefer, C. and Plank, J., 2023. On the CO2 footprint of polycarboxylate superplasticizers (PCEs) and its impact on the eco balance of concrete. Construction and Building Materials, 409, p.133944.
B36: Mean | E36: =AVERAGE(E33:E35) -> 0.9913333333
B37: Standard deviation | E37: =_xlfn.STDEV.S(E33:E35) -> 0.1220874004
A38: Water | B38: Habert | C38: 2011 | E38: 0.000155 | F38: Habert, G., De Lacaillerie, J.D.E. and Roussel, N., 2011. An environmental evaluation of geopolymer based concrete production: reviewing current research trends. Journal of cleaner production, 19(11), pp.1229-1238.
B39: Walach | C39: 2018 | E39: 0.00057 | F39: Wałach, D., 2020, December. Economic and environmental assessment of new generation concretes. In IOP Conference Series: Materials Science and Engineering (Vol. 960, No. 4, p. 042013). IOP Publishing.
B40: Mean | E40: =AVERAGE(E38:E39) -> 0.0003625
B41: Standard deviation | E41: =_xlfn.STDEV.S(E38:E39) -> 0.0002934493142
A42: Steel | B42: Garcia-Segura | C42: 2014 | E42: 0.92 | F42: García-Segura, T., Yepes, V. and Alcalá, J., 2014. Life cycle greenhouse gas emissions of blended cement concrete including carbonation and durability. The International Journal of Life Cycle Assessment, 19, pp.3-12.
B43: Biswas | C43: 2017 | E43: 1.47 | F43: Biswas, W.K., Alhorr, Y., Lawania, K.K., Sarker, P.K. and Elsarrag, E., 2017. Life cycle assessment for environmental product declaration of concrete in the Gulf States. Sustainable Cities and Society, 35, pp.36-46.
B44: Proske | C44: 2014 | E44: 0.86 | F44: Proske, T., Hainer, S., Rezvani, M. and Graubner, C.A., 2014. Eco-friendly concretes with reduced water and cement content–Mix design principles and application in practice. Construction and Building Materials, 67, pp.413-421.
B45: Mean | E45: =AVERAGE(E42:E44) -> 1.083333333
B46: Standard deviation | E46: =_xlfn.STDEV.S(E42:E44) -> 0.336204303
A47: Large truck | B47: Chiaia | C47: 2014 | D47: t.km | E47: 0.136 | F47: Chiaia, B., Fantilli, A.P., Guerini, A., Volpatti, G. and Zampini, D., 2014. Eco-mechanical index for structural concrete. Construction and Building Materials, 67, pp.386-392.
B48: Colangelo | C48: 2018 | E48: 0.804733 | F48: Colangelo, F., Forcina, A., Farina, I. and Petrillo, A., 2018. Life cycle assessment (LCA) of different kinds of concrete containing waste for sustainable construction. Buildings, 8(5), p.70.
B49: Tosic | C49: 2015 | E49: 0.406115 | F49: Tošić, N., Marinković, S., Dašić, T. and Stanić, M., 2015. Multicriteria optimization of natural and recycled aggregate concrete for structural use. Journal of cleaner production, 87, pp.766-776.
B50: Mean | E50: =AVERAGE(E47:E49) -> 0.4489493333
B51: Standard deviation | E51: =_xlfn.STDEV.S(E47:E49) -> 0.3364179564
A52: Energy for concrete mixing and casting | B52: Garcez | C52: 2018 | D52: m3 of concrete | E52: 2.631 | F52: Garcez, M.R., Rohden, A.B. and de Godoy, L.G.G., 2018. The role of concrete compressive strength on the service life and life cycle of a RC structure: Case study. Journal of cleaner production, 172, pp.27-38.
B53: Daumann | C53: 2009 | E53: 2.001 | F53: Daumann, B., Anlauf, H. and Nirschl, H., 2009. Determination of the energy consumption during the production of various concrete recipes. Cement and concrete research, 39(7), pp.590-599.
B54: Mean | E54: =AVERAGE(E52:E53) -> 2.316
B55: Standard deviation | E55: =_xlfn.STDEV.S(E52:E53) -> 0.4454772721

Sheet Data
A1: SI table S2
C2: Parameters | I2: b (mm) | J2: d (mm) | K2: h (mm) | L2: Load | Q2: Reinforcement | R2: L (mm) | S2: Quantities
C3: Binder | D3: fcm (MPa) | E3: feq,ctk,I (MPa) | F3: feq,ctk,II (MPa) | G3: feq,ctd (MPa) | H3: L/d | L3: gsw (N/mm') | M3: Δg (N/mm') | N3: q (N/mm') | O3: ψ2 | P3: qEd (N/mm') | Q3: As (mm2) | S3: Concrete (m3/m2) | T3: Reinforcement (kg/m2)
A4: 1 | B4: p | C4: PC-0F | D4: 56.9 | E4: 0 | F4: 0 | G4: 0 | H4: 20 | I4: 1000 | J4: 175 | K4: =IF(B4="p",J4+25,J4+40) -> 200 | L4: =25*K4/1000 -> 5 | M4: 3 | N4: 3 | O4: 0.3 | P4: =1.35*(L4+M4)+1.5*N4 -> 15.3 | Q4: 409 | R4: =J4*H4 -> 3500 | S4: =K4/1000 -> 0.2 | T4: =1.2*(Q4/10^6)*7850 -> 3.85278
A5: =A4+1 -> 2 | B5: p | C5: PC-0F | D5: 56.9 | E5: 0 | F5: 0 | G5: 0 | H5: 25 | I5: 1000 | J5: 175 | K5: 200 | L5: 5 | M5: 3 | N5: 3 | O5: 0.3 | P5: 15.3 | Q5: 493 | R5: 4375 | S5: 0.2 | T5: 4.64406
A6: 3 | B6: p | C6: PC-0F | D6: 56.9 | E6: 0 | F6: 0 | G6: 0 | H6: 20 | I6: 1000 | J6: 325 | K6: 350 | L6: 8.75 | M6: 3 | N6: 3 | O6: 0.3 | P6: 20.3625 | Q6: 779 | R6: 6500 | S6: 0.35 | T6: 7.33818
A7: 4 | B7: p | C7: PC-0F | D7: 56.9 | E7: 0 | F7: 0 | G7: 0 | H7: 25 | I7: 1000 | J7: 325 | K7: 350 | L7: 8.75 | M7: 3 | N7: 3 | O7: 0.3 | P7: 20.3625 | Q7: 1228 | R7: 8125 | S7: 0.35 | T7: 11.56776
A8: 5 | B8: l | C8: LC3-0F - 1.05d | D8: 49.1 | E8: 0 | F8: 0 | G8: 0 | H8: =R8/J8 -> 18.91891892 | I8: 1000 | J8: =ROUNDUP(1.05*J4/5,0)*5 -> 185 | K8: 225 | L8: 5.625 | M8: 3 | N8: 3 | O8: 0.3 | P8: =1.35*(L8+M8)+1.5*N8 -> 16.14375 | Q8: 387 | R8: =R4 -> 3500 | S8: 0.225 | T8: 3.64554
A9: 6 | B9: l | C9: LC3-0F - 1.05d | D9: 49.1 | E9: 0 | F9: 0 | G9: 0 | H9: =R9/J9 -> 23.64864865 | I9: 1000 | J9: =ROUNDUP(1.05*J5/5,0)*5 -> 185 | K9: 225 | L9: 5.625 | M9: 3 | N9: 3 | O9: 0.3 | P9: 16.14375 | Q9: 552 | R9: =R5 -> 4375 | S9: 0.225 | T9: 5.19984
A10: 7 | B10: l | C10: LC3-0F - 1.05d | D10: 49.1 | E10: 0 | F10: 0 | G10: 0 | H10: =R10/J10 -> 18.84057971 | I10: 1000 | J10: =ROUNDUP(1.05*J6/5,0)*5 -> 345 | K10: 385 | L10: 9.625 | M10: 3 | N10: 3 | O10: 0.3 | P10: 21.54375 | Q10: 876 | R10: =R6 -> 6500 | S10: 0.385 | T10: 8.25192
A11: 8 | B11: l | C11: LC3-0F - 1.05d | D11: 49.1 | E11: 0 | F11: 0 | G11: 0 | H11: 23.55072464 | I11: 1000 | J11: =ROUNDUP(1.05*J7/5,0)*5 -> 345 | K11: 385 | L11: 9.625 | M11: 3 | N11: 3 | O11: 0.3 | P11: 21.54375 | Q11: 1393 | R11: =R7 -> 8125 | S11: 0.385 | T11: 13.12206
A12: 9 | B12: l | C12: LC3-0F - 1.15As | D12: 49.1 | E12: 0 | F12: 0 | G12: 0 | H12: 20 | I12: 1000 | J12: =J4 -> 175 | K12: 215 | L12: 5.375 | M12: 3 | N12: 3 | O12: 0.3 | P12: =1.35*(L12+M12)+1.5*N12 -> 15.80625 | Q12: 366 | R12: =J12*H12 -> 3500 | S12: 0.215 | T12: 3.44772
A13: 10 | B13: l | C13: LC3-0F - 1.15As | D13: 49.1 | E13: 0 | F13: 0 | G13: 0 | H13: 25 | I13: 1000 | J13: =J5 -> 175 | K13: 215 | L13: 5.375 | M13: 3 | N13: 3 | O13: 0.3 | P13: 15.80625 | Q13: 512 | R13: 4375 | S13: 0.215 | T13: 4.82304
A14: 11 | B14: l | C14: LC3-0F - 1.15As | D14: 49.1 | E14: 0 | F14: 0 | G14: 0 | H14: 20 | I14: 1000 | J14: =J6 -> 325 | K14: 365 | L14: 9.125 | M14: 3 | N14: 3 | O14: 0.3 | P14: 20.86875 | Q14: 800 | R14: 6500 | S14: 0.365 | T14: 7.536
A15: 12 | B15: l | C15: LC3-0F - 1.15As | D15: 49.1 | E15: 0 | F15: 0 | G15: 0 | H15: 25 | I15: 1000 | J15: =J7 -> 325 | K15: 365 | L15: 9.125 | M15: 3 | N15: 3 | O15: 0.3 | P15: 20.86875 | Q15: 1268 | R15: 8125 | S15: 0.365 | T15: 11.94456
A16: 13 | B16: p | C16: PC-SF | D16: 65.8 | E16: 2.27 | F16: 1.63 | G16: =F16*0.85*(1-(K16-150)*0.2/450)/1.25 -> 1.083768889 | H16: 20 | I16: 1000 | J16: 175 | K16: 200 | L16: =25*K16/1000 -> 5 | M16: 3 | N16: 3 | O16: 0.3 | P16: =1.35*(L16+M16)+1.5*N16 -> 15.3 | Q16: =445/2 -> 222.5 | R16: 3500 | S16: 0.2 | T16: 2.09595
A17: 14 | B17: p | C17: PC-SF | D17: 65.8 | E17: 2.27 | F17: 1.63 | G17: 1.083768889 | H17: 25 | I17: 1000 | J17: 175 | K17: 200 | L17: 5 | M17: 3 | N17: 3 | O17: 0.3 | P17: 15.3 | Q17: 228 | R17: 4375 | S17: 0.2 | T17: 2.14776
A18: 15 | B18: p | C18: PC-SF | D18: 65.8 | E18: 2.27 | F18: 1.63 | G18: 1.009875556 | H18: 20 | I18: 1000 | J18: 325 | K18: 350 | L18: 8.75 | M18: 3 | N18: 3 | O18: 0.3 | P18: 20.3625 | Q18: =826/2 -> 413 | R18: 6500 | S18: 0.35 | T18: 3.89046
A19: 16 | B19: p | C19: PC-SF | D19: 65.8 | E19: 2.27 | F19: 1.63 | G19: 1.009875556 | H19: 25 | I19: 1000 | J19: 325 | K19: 350 | L19: 8.75 | M19: 3 | N19: 3 | O19: 0.3 | P19: 20.3625 | Q19: 817 | R19: 8125 | S19: 0.35 | T19: 7.69614
A20: 17 | B20: l | C20: LC3-SF - 1.05d | D20: 58 | E20: 2.02 | F20: 1.14 | G20: 0.74936 | H20: =R20/J20 -> 18.91891892 | I20: 1000 | J20: =ROUNDUP(1.05*J16/5,0)*5 -> 185 | K20: 225 | L20: 5.625 | M20: 3 | N20: 3 | O20: 0.3 | P20: =1.35*(L20+M20)+1.5*N20 -> 16.14375 | Q20: =432/2 -> 216 | R20: =R16 -> 3500 | S20: 0.225 | T20: 2.03472
A21: 18 | B21: l | C21: LC3-SF - 1.05d | D21: 58 | E21: 2.02 | F21: 1.14 | G21: 0.74936 | H21: 23.64864865 | I21: 1000 | J21: =ROUNDUP(1.05*J17/5,0)*5 -> 185 | K21: 225 | L21: 5.625 | M21: 3 | N21: 3 | O21: 0.3 | P21: 16.14375 | Q21: 329 | R21: =R17 -> 4375 | S21: 0.225 | T21: 3.09918
A22: 19 | B22: l | C22: LC3-SF - 1.05d | D22: 58 | E22: 2.02 | F22: 1.14 | G22: 0.6942346667 | H22: 18.84057971 | I22: 1000 | J22: =ROUNDUP(1.05*J18/5,0)*5 -> 345 | K22: 385 | L22: 9.625 | M22: 3 | N22: 3 | O22: 0.3 | P22: 21.54375 | Q22: 556 | R22: =R18 -> 6500 | S22: 0.385 | T22: 5.23752
A23: 20 | B23: l | C23: LC3-SF - 1.05d | D23: 58 | E23: 2.02 | F23: 1.14 | G23: 0.6942346667 | H23: 23.55072464 | I23: 1000 | J23: =ROUNDUP(1.05*J19/5,0)*5 -> 345 | K23: 385 | L23: 9.625 | M23: 3 | N23: 3 | O23: 0.3 | P23: 21.54375 | Q23: 1056 | R23: =R19 -> 8125 | S23: 0.385 | T23: 9.94752
A24: 21 | B24: l | C24: LC3-SF - 1.15As | D24: 58 | E24: 2.02 | F24: 1.14 | G24: 0.7528053333 | H24: 20 | I24: 1000 | J24: =J16 -> 175 | K24: 215 | L24: 5.375 | M24: 3 | N24: 3 | O24: 0.3 | P24: =1.35*(L24+M24)+1.5*N24 -> 15.80625 | Q24: =409/2 -> 204.5 | R24: =J24*H24 -> 3500 | S24: 0.215 | T24: 1.92639
A25: 22 | B25: l | C25: LC3-SF - 1.15As | D25: 58 | E25: 2.02 | F25: 1.14 | G25: 0.7528053333 | H25: 25 | I25: 1000 | J25: =J17 -> 175 | K25: 215 | L25: 5.375 | M25: 3 | N25: 3 | O25: 0.3 | P25: 15.80625 | Q25: 297 | R25: 4375 | S25: 0.215 | T25: 2.79774
A26: 23 | B26: l | C26: LC3-SF - 1.15As | D26: 58 | E26: 2.02 | F26: 1.14 | G26: 0.7011253333 | H26: 20 | I26: 1000 | J26: =J18 -> 325 | K26: 365 | L26: 9.125 | M26: 3 | N26: 3 | O26: 0.3 | P26: 20.86875 | Q26: 494 | R26: 6500 | S26: 0.365 | T26: 4.65348
A27: 24 | B27: l | C27: LC3-SF - 1.15As | D27: 58 | E27: 2.02 | F27: 1.14 | G27: 0.7011253333 | H27: 25 | I27: 1000 | J27: =J19 -> 325 | K27: 365 | L27: 9.125 | M27: 3 | N27: 3 | O27: 0.3 | P27: 20.86875 | Q27: 950 | R27: 8125 | S27: 0.365 | T27: 8.949

Sheet LCA
A1: SI table S3
A2: Constituent | B2: Unit | C2: GWP
C3: kg CO2 eq
C4: A1 module | E4: A1-A2 modules
C5: average | D5: St.dev | E5: average
A6: CEM I 52.5 N | B6: /kg | C6: ='LCI-annex'!E7 -> 0.8501447368 | D6: ='LCI-annex'!E8 -> 0.03167661432 | E6: =C6+'LCI-annex'!$E$50*50/1000 -> 0.8725922035
A7: Calcined Clay | C7: ='LCI-annex'!E21 -> 0.232 | D7: ='LCI-annex'!E20 -> 0.258 | E7: =C7+'LCI-annex'!$E$50*50/1000 -> 0.2544474667
A8: Limestone | C8: ='LCI-annex'!E16 -> 0.0587 | D8: ='LCI-annex'!E15 -> 0.02 | E8: =C8+'LCI-annex'!$E$50*50/1000 -> 0.08114746667
A9: Gypsum | C9: ='LCI-annex'!E11 -> 0.054 | D9: ='LCI-annex'!E10 -> 0.069 | E9: =C9+'LCI-annex'!$E$50*50/1000 -> 0.07644746667
A10: Super Plasticizers | C10: ='LCI-annex'!E36 -> 0.9913333333 | D10: ='LCI-annex'!E35 -> 0.9 | E10: =C10+'LCI-annex'!$E$50*50/1000 -> 1.0137808
A11: Water | C11: ='LCI-annex'!E40 -> 0.0003625 | D11: ='LCI-annex'!E39 -> 0.00057 | E11: =C11+'LCI-annex'!$E$50*50/1000 -> 0.02280996667
A12: Steel | C12: ='LCI-annex'!E45 -> 1.083333333 | D12: ='LCI-annex'!E44 -> 0.86 | E12: =C12+'LCI-annex'!$E$50*50/1000 -> 1.1057808
A13: Fine Aggregates | C13: ='LCI-annex'!E31 -> 0.002366666667 | D13: ='LCI-annex'!E30 -> 0.002 | E13: =C13+'LCI-annex'!$E$50*50/1000 -> 0.02481413333
A14: Coarse Aggregates | C14: ='LCI-annex'!E26 -> 0.004063333333 | D14: ='LCI-annex'!E25 -> 0.0029 | E14: =C14+'LCI-annex'!$E$50*50/1000 -> 0.0265108
H15: PC-0F | I15: PC-SF | J15: LC3-0F | K15: LC3-SF | L15: PC-0F | M15: PC-SF | N15: LC3-0F | O15: LC3-SF | P15: PC-0F | Q15: PC-SF | R15: LC3-0F | S15: LC3-SF
C16: PC-0F | D16: PC-SF | E16: LC3-0F | F16: LC3-SF | H16: average kg CO2/m2 of slab | L16: % | P16: error kg CO2/m2 of slab
A17: CEM I 52.5 N | B17: kg/ m3 | C17: 300 | D17: 300 | E17: 159 | F17: 159 | G17: CEM I 52.5 N | H17: =$C$6*C17*E34 -> 51.00868421 | I17: =$C$6*D17*F34 -> 51.00868421 | J17: =$C$6*E17*G34 -> 29.06219783 | K17: =$C$6*F17*H34 -> 29.06219783 | L17: =H17/$H$27 -> 0.9044256371 | M17: =I17/$I$27 -> 0.7408131632 | N17: =J17/$J$27 -> 0.7349713887 | O17: =K17/$K$27 -> 0.5469809749 | P17: -0.8510377806 | Q17: -0.8510377806 | R17: -0.4848787755 | S17: -0.4848787755
A18: Calcined Clay | C18: 0 | D18: 0 | E18: 90 | F18: 90 | G18: Calcined Clay | H18: =$C$7*C18*E34 -> 0 | I18: =$C$7*D18*F34 -> 0 | J18: =$C$7*E18*G34 -> 4.4892 | K18: =$C$7*F18*H34 -> 4.4892 | L18: =H18/$H$27 -> 0 | M18: =I18/$I$27 -> 0 | N18: =J18/$J$27 -> 0.113530077 | O18: =K18/$K$27 -> 0.08449144167 | P18: 0 | Q18: 0 | R18: 1.832742275 | S18: 1.832742275
A19: Limestone | C19: 0 | D19: 0 | E19: 45 | F19: 45 | G19: Limestone | H19: =$C$8*C19*E34 -> 0 | I19: =$C$8*D19*F34 -> 0 | J19: =$C$8*E19*G34 -> 0.5679225 | K19: =$C$8*F19*H34 -> 0.5679225 | L19: 0 | M19: 0 | N19: 0.01436253345 | O19: 0.01068889575 | P19: 0 | Q19: 0 | R19: 0.5472316173 | S19: 0.5472316173
A20: Gypsum | C20: 0 | D20: 0 | E20: 6 | F20: 6 | G20: Gypsum | H20: =$C$9*C20*E34 -> 0 | I20: =$C$9*D20*F34 -> 0 | J20: =$C$9*E20*G34 -> 0.06966 | K20: =$C$9*F20*H34 -> 0.06966 | L20: 0 | M20: 0 | N20: 0.001761673609 | O20: 0.001311074095 | P20: 0 | Q20: 0 | R20: 0.02736503243 | S20: 0.02736503243
A21: Super Plasticizers | C21: 0 | D21: 6.9 | E21: 1.5 | F21: 7.5 | G21: Superplasticizers | H21: =$C$10*C21*E34 -> 0 | I21: =$C$10*D21*F34 -> 1.36804 | J21: =$C$10*E21*G34 -> 0.319705 | K21: =$C$10*F21*H34 -> 1.598525 | L21: 0 | M21: 0.01986842153 | N21: 0.008085211904 | O21: 0.03008591326 | P21: 0 | Q21: 0.2201303892 | R21: 0.05144351486 | S21: 0.2572175743
A22: Water | C22: 150 | D22: 150 | E22: 150 | F22: 150 | G22: Water | H22: =$C$11*C22*E34 -> 0.010875 | I22: =$C$11*D22*F34 -> 0.010875 | J22: =$C$11*E22*G34 -> 0.011690625 | K22: =$C$11*F22*H34 -> 0.011690625 | L22: 0.0001928226332 | M22: 0.0001579406188 | N22: 0.0002956512423 | O22: 0.000220029796 | P22: 0.008803479426 | Q22: 0.008803479426 | R22: 0.009463740383 | S22: 0.009463740383
A23: Steel fibres | C23: 0 | D23: 60 | E23: 0 | F23: 60 | G23: Steel fibres | H23: =$C$12*C23*E34 -> 0 | I23: =$C$12*D23*F34 -> 13 | J23: =$C$12*E23*G34 -> 0 | K23: =$C$12*F23*H34 -> 13.975 | L23: 0 | M23: 0.1888025788 | N23: 0 | O23: 0.263024124 | P23: 0 | Q23: 4.034451636 | R23: 0 | S23: 4.337035508
A24: Sand 0/4 | C24: 770 | D24: 760 | E24: 760 | F24: 755 | G24: Fine Aggregates | H24: =$C$13*C24*E34 -> 0.3644666667 | I24: =$C$13*D24*F34 -> 0.3597333333 | J24: =$C$13*E24*G34 -> 0.3867133333 | K24: =$C$13*F24*H34 -> 0.3841691667 | L24: 0.006462291712 | M24: 0.005224506233 | N24: 0.009779825921 | O24: 0.007230465726 | P24: 0.1163376377 | Q24: 0.1148267593 | R24: 0.1234387662 | S24: 0.1226266691 | T24: =C24/SUM($C$24:$C$27) -> 0.4265927978 | U24: =D24/SUM($C$24:$C$27) -> 0.4210526316 | V24: =E24/SUM($C$24:$C$27) -> 0.4210526316 | W24: =F24/SUM($C$24:$C$27) -> 0.4182825485 | X24: 1
A25: Fine gravel 4/8 | C25: 230 | D25: 225 | E25: 225 | F25: 220 | G25: Coarse Aggregates | H25: =$C$14*(C25+C26+C27)*E34 -> 0.84111 | I25: =$C$14*(D25+D26+D27)*F34 -> 0.8370466667 | J25: =$C$14*(E25+E26+E27)*G34 -> 0.8998251667 | K25: =$C$14*(F25+F26+F27)*H34 -> 0.8867209167 | L25: 0.01491356735 | M25: 0.01215665917 | N25: 0.02275621948 | O25: 0.01668901555 | P25: 0.221115665 | Q25: 0.2200474734 | R25: 0.2365510339 | S25: 0.2331061159 | T25: =C25/SUM($C$24:$C$27) -> 0.1274238227 | U25: 0.1246537396 | V25: 0.1246537396 | W25: 0.1218836565 | X25: =T25/$T$24 -> 0.2987012987
A26: Coarse gravel 8/16 | C26: 375 | D26: 375 | E26: 375 | F26: 370 | G26: Steel rebars | H26: =E35*C12 -> 4.173845 | I26: =F35*C12 -> 2.2706125 | J26: =G35*C12 -> 3.73503 | K26: =H35*C12 -> 2.0869225 | L26: 0.07400568122 | M26: 0.03297673042 | N26: 0.09445741861 | O26: 0.03927806528 | P26: 1.295321214 | Q26: 0.7046674088 | R26: 1.159138299 | S26: 0.6476606072 | T26: 0.2077562327 | U26: 0.2077562327 | V26: 0.2077562327 | W26: 0.2049861496 | X26: =T26/$T$24 -> 0.487012987
A27: Coarser gravel 16/32 | C27: 430 | D27: 430 | E27: 430 | F27: 425 | G27: Total | H27: =SUM(H17:H26) -> 56.39898088 | I27: =SUM(I17:I26) -> 68.85499171 | J27: =SUM(J17:J26) -> 39.54194445 | K27: 53.13200854 | L27: =SUM(L17:L26) -> 1 | M27: =SUM(M17:M26) -> 1 | N27: =SUM(N17:N26) -> 1 | O27: =SUM(O17:O26) -> 1 | P27: 0.7905402159 | Q27: 4.451889365 | R27: 3.502495504 | S27: 7.529570365 | T27: 0.2382271468 | U27: 0.2382271468 | V27: 0.2382271468 | W27: 0.2354570637 | X27: =T27/$T$24 -> 0.5584415584
C29: per m3 | D29: OPC | E29: OPC-SF | F29: LC3 | G29: LC3-SF
A30: GWP (A1-A3) | B30: average | C30: kg CO2 eq | D30: =C17*$E$6+C18*$E$7+C19*$E$8+C20*$E$9+C21*$E$10+C22*$E$11+C23*$E$12+C24*$E$13+SUM(C25:C27)*$E$14+'LCI-annex'!$E$54 -> 314.0607167 | E30: =D17*$E$6+D18*$E$7+D19*$E$8+D20*$E$9+D21*$E$10+D22*$E$11+D23*$E$12+D24*$E$13+SUM(D25:D27)*$E$14+'LCI-annex'!$E$54 -> 387.0219569 | F30: =E17*$E$6+E18*$E$7+E19*$E$8+E20*$E$9+E21*$E$10+E22*$E$11+E23*$E$12+E24*$E$13+SUM(E25:E27)*$E$14+'LCI-annex'!$E$54 -> 219.1757847 | G30: =F17*$E$6+F18*$E$7+F19*$E$8+F20*$E$9+F21*$E$10+F22*$E$11+F23*$E$12+F24*$E$13+SUM(F25:F27)*$E$14+'LCI-annex'!$E$54 -> 291.0835848
B31: St.dev | D31: =SQRT(C17*$D$6*$D$6+C18*$D$7*$D$7+C19*$D$8*$D$8+C20*$D$9*$D$9+C21*$D$10*$D$10+C22*$D$11*$D$11+C23*$D$12*$D$12+C24*$D$13*$D$13+SUM(C25:C27)*$D$14*$D$14+'LCI-annex'!$E$55) -> 0.8708230162 | E31: =SQRT(D17*$D$6*$D$6+D18*$D$7*$D$7+D19*$D$8*$D$8+D20*$D$9*$D$9+D21*$D$10*$D$10+D22*$D$11*$D$11+D23*$D$12*$D$12+D24*$D$13*$D$13+SUM(D25:D27)*$D$14*$D$14+'LCI-annex'!$E$55) -> 7.122025742 | F31: =SQRT(E17*$D$6*$D$6+E18*$D$7*$D$7+E19*$D$8*$D$8+E20*$D$9*$D$9+E21*$D$10*$D$10+E22*$D$11*$D$11+E23*$D$12*$D$12+E24*$D$13*$D$13+SUM(E25:E27)*$D$14*$D$14+'LCI-annex'!$E$55) -> 2.805190932 | G31: =SQRT(F17*$D$6*$D$6+F18*$D$7*$D$7+F19*$D$8*$D$8+F20*$D$9*$D$9+F21*$D$10*$D$10+F22*$D$11*$D$11+F23*$D$12*$D$12+F24*$D$13*$D$13+SUM(F25:F27)*$D$14*$D$14+'LCI-annex'!$E$55) -> 7.556781723
A33: Scenario | B33: L(mm) | C33: Indicator | D33: Unit/FU (m2) | E33: OPC | F33: OPC-SF | G33: LC3 | H33: LC3-SF
A34: 1 | B34: 3500 | C34: Concrete volume | D34: m3 | E34: =Data!S4 -> 0.2 | F34: =Data!S16 -> 0.2 | G34: =Data!S12 -> 0.215 | H34: =Data!S24 -> 0.215
C35: Steel reinforcement | D35: kg | E35: =Data!T4 -> 3.85278 | F35: =Data!T16 -> 2.09595 | G35: =Data!T12 -> 3.44772 | H35: =Data!T24 -> 1.92639
C36: GWP | D36: kg CO2 | E36: =D30*E34+$E$12*E35 -> 67.07247349 | F36: =E30*F34+$E$12*F35 -> 79.72205265 | G36: 50.93521629 | H36: 64.71313581
A37: 2 | B37: 4375 | C37: Concrete volume | D37: m3 | E37: =Data!S5 -> 0.2 | F37: =Data!S17 -> 0.2 | G37: =Data!S13 -> 0.215 | H37: =Data!S25 -> 0.215
C38: Steel reinforcement | D38: kg | E38: =Data!T5 -> 4.64406 | F38: =Data!T17 -> 2.14776 | G38: =Data!T13 -> 4.82304 | H38: =Data!T25 -> 2.79774
C39: GWP | D39: kg CO2 | E39: =D30*E37+$E$12*E38 -> 67.94745573 | F39: =E30*F37+$E$12*F38 -> 79.77934315 | G39: =F30*G37+$E$12*G38 -> 52.45601874 | H39: =G30*H37+$E$12*H38 -> 65.67665791
A40: 3 | B40: 6500 | C40: Concrete volume | D40: m3 | E40: =Data!S6 -> 0.35 | F40: =Data!S18 -> 0.35 | G40: =Data!S14 -> 0.365 | H40: =Data!S26 -> 0.365
C41: Steel reinforcement | D41: kg | E41: =Data!T6 -> 7.33818 | F41: =Data!T18 -> 3.89046 | G41: =Data!T14 -> 7.536 | H41: =Data!T26 -> 4.65348
C42: GWP | D42: kg CO2 | E42: =D30*E40+$E$12*E41 -> 118.0356694 | F42: =E30*F40+$E$12*F41 -> 139.7596809 | G42: =F30*G40+$E$12*G41 -> 88.33232552 | H42: =G30*H40+$E$12*H41 -> 111.3912373
A43: 4 | B43: 8125 | C43: Concrete volume | D43: m3 | E43: =Data!S7 -> 0.35 | F43: =Data!S19 -> 0.35 | G43: =Data!S15 -> 0.365 | H43: =Data!S27 -> 0.365
C44: Steel reinforcement | D44: kg | E44: =Data!T7 -> 11.56776 | F44: =Data!T19 -> 7.69614 | G44: =Data!T15 -> 11.94456 | H44: =Data!T27 -> 8.949
C45: GWP | D45: kg CO2 | E45: =D30*E43+$E$12*E44 -> 122.7126578 | F45: =E30*F43+$E$12*F44 -> 143.9679288 | G45: =F30*G43+$E$12*G44 -> 93.20722652 | H45: =G30*H43+$E$12*H44 -> 116.1411408

Sheet Discussions
A1: SI table S4
D2: Unit | E2: OPC | F2: OPC-SF | G2: LC3 | H2: LC3-SF | W2: Baseline scenario
A3: Baseline scenario | B3: GWP (kg CO2eq/unit) | C3: Concrete | D3: m3 | E3: 314.0607167 | F3: 320.6751089 | G3: 219.1757847 | H3: 224.7367368 | W3: Binder content
C4: Steel fibres | D4: kg | E4: 1.1057808 | F4: 1.1057808 | G4: 1.1057808 | H4: 1.1057808 | W4: Recycled fibres
C5: Steel reinforcement | E5: 1.1057808 | F5: 1.1057808 | G5: 1.1057808 | H5: 1.1057808 | W5: Concrete Volume
B6: Material intensity (Unit/m2 slab) | C6: Concrete | D6: m3 | E6: 0.35 | F6: 0.35 | G6: 0.365 | H6: 0.365 | W6: Min. rebars
C7: Steel fibres | D7: kg | E7: 0 | F7: =60*F6 -> 21 | G7: 0 | H7: =60*H6 -> 21.9
C8: Steel reinforcement | E8: 7.33818 | F8: 3.89046 | G8: 7.536 | H8: 4.65348
B9: GWP (kg CO2eq/m2 slab) | C9: Concrete | D9: - | E9: =E6*E3+E4*E7 -> 109.9212509 | F9: =F6*F3+F4*F7 -> 135.4576849 | G9: =G6*G3+G4*G7 -> 79.99916141 | H9: =H6*H3+H4*H7 -> 106.2455085
C10: Steel reinforcement | D10: - | E10: =E8*E5 -> 8.114418551 | F10: =F8*F5 -> 4.301995971 | G10: =G8*G5 -> 8.333164109 | H10: =H8*H5 -> 5.145728837
C11: Total | D11: - | E11: =E10+E9 -> 118.0356694 | F11: =F10+F9 -> 139.7596809 | G11: =G10+G9 -> 88.33232552 | H11: =H10+H9 -> 111.3912373
A12: Discussions scenario 1 | B12: GWP (kg CO2eq/unit) | C12: Concrete | D12: m3 | E12: =E3 -> 314.0607167 | F12: =F3*0.9 -> 288.607598 | G12: =G3 -> 219.1757847 | H12: =H3*0.9 -> 202.2630631
C13: Steel fibres | D13: kg | E13: =E4 -> 1.1057808 | F13: =F4 -> 1.1057808 | G13: 1.1057808 | H13: 1.1057808
C14: Steel reinforcement | E14: =E5 -> 1.1057808 | F14: 1.1057808 | G14: 1.1057808 | H14: 1.1057808
B15: Material intensity (Unit/m2 slab) | C15: Concrete | D15: m3 | E15: 0.35 | F15: 0.35 | G15: 0.365 | H15: 0.365
C16: Steel fibres | D16: kg | E16: 0 | F16: =60*F15 -> 21 | G16: 0 | H16: =60*H15 -> 21.9
C17: Steel reinforcement | E17: 7.33818 | F17: 3.89046 | G17: 7.536 | H17: 4.65348
B18: GWP (kg CO2eq/m2 slab) | C18: Concrete | D18: - | E18: =E15*E12+E13*E16 -> 109.9212509 | F18: =F15*F12+F13*F16 -> 124.2340561 | G18: =G15*G12+G13*G16 -> 79.99916141 | H18: 98.04261757
C19: Steel reinforcement | D19: - | E19: =E17*E14 -> 8.114418551 | F19: =F17*F14 -> 4.301995971 | G19: =G17*G14 -> 8.333164109 | H19: 5.145728837
C20: Total | D20: - | E20: =E19+E18 -> 118.0356694 | F20: =F19+F18 -> 128.5360521 | G20: =G19+G18 -> 88.33232552 | H20: =H19+H18 -> 103.1883464
A21: Discussions scenario 2 | B21: GWP (kg CO2eq/unit) | C21: Concrete | D21: m3 | E21: =E3 -> 314.0607167 | F21: =F3 -> 320.6751089 | G21: 219.1757847 | H21: 224.7367368
C22: Steel fibres | D22: kg | E22: 0.0547 | F22: 0.0547 | G22: 0.0547 | H22: 0.0547
C23: Steel reinforcement | E23: 1.1057808 | F23: 1.1057808 | G23: 1.1057808 | H23: 1.1057808
B24: Material intensity (Unit/m2 slab) | C24: Concrete | D24: m3 | E24: 0.35 | F24: 0.35 | G24: 0.365 | H24: 0.365
C25: Steel fibres | D25: kg | E25: 0 | F25: =60*F24 -> 21 | G25: 0 | H25: =60*H24 -> 21.9
C26: Steel reinforcement | E26: 7.33818 | F26: 3.89046 | G26: 7.536 | H26: 4.65348
B27: GWP (kg CO2eq/m2 slab) | C27: Concrete | D27: - | E27: =E24*E21+E22*E25 -> 109.9212509 | F27: =F24*F21+F22*F25 -> 113.3849881 | G27: =G24*G21+G22*G25 -> 79.99916141 | H27: 83.22683894
C28: Steel reinforcement | D28: - | E28: =E26*E23 -> 8.114418551 | F28: =F26*F23 -> 4.301995971 | G28: =G26*G23 -> 8.333164109 | H28: 5.145728837
C29: Total | D29: - | E29: =E28+E27 -> 118.0356694 | F29: =F28+F27 -> 117.6869841 | G29: =G28+G27 -> 88.33232552 | H29: =H28+H27 -> 88.37256778
A30: Discussions scenario 3 | B30: GWP (kg CO2eq/unit) | C30: Concrete | D30: m3 | E30: 314.0607167 | F30: 320.6751089 | G30: 219.1757847 | H30: 224.7367368
C31: Steel fibres | D31: kg | E31: 1.1057808 | F31: 1.1057808 | G31: 1.1057808 | H31: 1.1057808
C32: Steel reinforcement | E32: 1.1057808 | F32: 1.1057808 | G32: 1.1057808 | H32: 1.1057808
B33: Material intensity (Unit/m2 slab) | C33: Concrete | D33: m3 | E33: 0.35 | F33: =E33*0.85 -> 0.2975 | G33: 0.365 | H33: =G33*0.85 -> 0.31025
C34: Steel fibres | D34: kg | E34: 0 | F34: =60*F33 -> 17.85 | G34: 0 | H34: =60*H33 -> 18.615
C35: Steel reinforcement | E35: 7.33818 | F35: 3.89046 | G35: 7.536 | H35: 4.65348
B36: GWP (kg CO2eq/m2 slab) | C36: Concrete | D36: - | E36: =E33*E30+E31*E34 -> 109.9212509 | F36: =F33*F30+F31*F34 -> 115.1390322 | G36: =G33*G30+G31*G34 -> 79.99916141 | H36: 90.30868219
C37: Steel reinforcement | D37: - | E37: =E35*E32 -> 8.114418551 | F37: =F35*F32 -> 4.301995971 | G37: =G35*G32 -> 8.333164109 | H37: 5.145728837
C38: Total | D38: - | E38: =E37+E36 -> 118.0356694 | F38: =F37+F36 -> 119.4410282 | G38: =G37+G36 -> 88.33232552 | H38: =H37+H36 -> 95.45441103
A39: Discussions scenario 4 | B39: GWP (kg CO2eq/unit) | C39: Concrete | D39: m3 | E39: 314.0607167 | F39: 320.6751089 | G39: 219.1757847 | H39: 224.7367368
C40: Steel fibres | D40: kg | E40: 1.1057808 | F40: 1.1057808 | G40: 1.1057808 | H40: 1.1057808
C41: Steel reinforcement | E41: 1.1057808 | F41: 1.1057808 | G41: 1.1057808 | H41: 1.1057808
B42: Material intensity (Unit/m2 slab) | C42: Concrete | D42: m3 | E42: 0.35 | F42: 0.35 | G42: 0.365 | H42: 0.365
C43: Steel fibres | D43: kg | E43: 0 | F43: =60*F42 -> 21 | G43: 0 | H43: =60*H42 -> 21.9
C44: Steel reinforcement | E44: 7.33818 | F44: 0 | G44: 7.536 | H44: 0
B45: GWP (kg CO2eq/m2 slab) | C45: Concrete | D45: - | E45: =E42*E39+E40*E43 -> 109.9212509 | F45: =F42*F39+F40*F43 -> 135.4576849 | G45: =G42*G39+G40*G43 -> 79.99916141 | H45: 106.2455085
C46: Steel reinforcement | D46: - | E46: =E44*E41 -> 8.114418551 | F46: =F44*F41 -> 0 | G46: =G44*G41 -> 8.333164109 | H46: 0
C47: Total | D47: - | E47: =E46+E45 -> 118.0356694 | F47: =F46+F45 -> 135.4576849 | G47: =G46+G45 -> 88.33232552 | H47: =H46+H45 -> 106.2455085
